Workbook

Sheet Index (hidden)
B2: INFORMATION DISCLOSURE REQUIREMENTS
C4: TABLE OF CONTENTS
C5: for the year ended [type here]
B7: TYPE | C7: PROFORMA STATEMENT | D7: STATEMENT NUMBER | E7: PAGE
B8: Regulatory Financial Statements
C9: Income Statement | D9: RFS Inc | E9: 1
B11: Disaggregation Statements
C12: Income Statement | D12: DISAGG Inc | E12: 2
B14: Workpapers supporting the Disaggregation Statements:
C15: Operations and maintenance expenditure | D15: DISAGG Opex | E15: 3
C16: Causal allocations | D16: DISAGG Aloc1 | E16: 4
C17: Non-causal allocations | D17: DISAGG Aloc2 | E17: 5
B19: Prescribed Transmission Services
C20: Regulatory adjustment journals | D20: PTS Adj | E20: 6
C22: Price reduction/recovery | D22: PTS PriceRedn | E22: 7
C24: Discount | D24: PTS Disc | E24: 8
C26: Revenue analysis | D26: PTS Rev | E26: 9
B28: Asset schedules and supporting papers:
B29: Prescribed Transmission Services | C29: Asset Aging Schedule | D29: PTS Asset Aging | E29: 10
B31: Provisions Schedules:
B32: Disaggregation Statements | C32: Provisions Summary | D32: DISAGG ProvSum | E32: 11
C33: Provisions Reconciliation | D33: PTS ProvRec | E33: 12
B35: Other Information
C36: Related Party Transactions | D36: Inf Rel Part Trans | E36: 13
C37: Revenue Reconciliation | D37: Inf Rev Rec | E37: 14
B39: Non-financial Schedules
C40: Current Map of the Network | D40: NFS Curr Map Netw | E40: na
B42: Historic Operating Expenditure (Opex)
C43: Historic Opex by Category - Summary | D43: HOE Sum | E43: 15
C44: Historic Opex by Category base year | D44: HOE Base | E44: 16
C45: Historic Opex by Category 1st FY | D45: HOE 1st FY | E45: 17
C46: Historic Opex by Category 2nd FY | D46: HOE 2ndt FY | E46: 18
C47: Historic Opex by Category 3rd FY | D47: HOE 3rdt FY | E47: 19
C48: Historic Opex by Category 4th FY | D48: HOE 4th FY | E48: 20
C49: Historic Opex by Category 5th FY | D49: HOE 5th FY | E49: 21
B51: Historic Capital Expenditure (Capex)
C52: Historic Capex by Category | D52: HCE Cat | E52: 22
C53: Historic Capex by Asset Class | D53: HCE Ass Cls | E53: 23
C54: Historic Capex - Network | D54: HCE Netw | E54: 24
C55: Historic Capex - Non-Network | D55: HCE Non Netw | E55: 25
B57: Commentary
C58: Commentary on Opex | D58: Comm Opex | E58: 26
C59: Commentary on Historic Capex | D59: Comm Hist Capex | E59: 27
B61: Instructions
C62: Opex Instructions | D62: Ins Opex | E62: 28
C63: Historic Capex Instructions | D63: Ins Capex | E63: 29

Sheet RFS Inc
A1: Powerlink
A2: INCOME STATEMENT - PRESCRIBED TRANSMISSION SERVICES
A7: for the period ended: | C7: 30 June 2017
A9: Account code or reference to Account Code | C9: Description | D9: Disaggregation Statement - Prescribed Transmission Services | E9: Journal number | F9: Regulatory adjustments | G9: Regulatory financial statements | H9: Support reference
D10: $'000 | F10: $'000 | G10: $'000
F11: Dr/(Cr)
B13: Network Charges | D13: ='DISAGG Inc'!F12 -> 1169040 | G13: =D13+F13 -> 1169040
B14: Grid Support Under Recovery Accrual | D14: ='DISAGG Inc'!F13 -> 0
B15: External Project Work | D15: ='DISAGG Inc'!F14 -> 0
B16: Other Revenue | D16: ='DISAGG Inc'!F15 -> 0
C17: Customer Works | D17: ='DISAGG Inc'!F16 -> 0
C18: Other | D18: ='DISAGG Inc'!F17 -> 190 | E18: 2017-01 | F18: -53.24408 | G18: =D18+F18 -> 136.75592
B20: Total Revenue | D20: =SUM(D12:D19) -> 1169230 | F20: =SUM(F12:F19) -> -53.24408 | G20: =SUM(G12:G19) -> 1169176.756
B23: Opex Costs
B24: - | C24: Network Operations | D24: ='DISAGG Inc'!F21 -> 14269 | G24: =D24+F24 -> 14269
B25: - | C25: Network Maintenance | D25: ='DISAGG Inc'!F22 -> 122840 | G25: 122840
B26: - | C26: Corporate / Business Support | D26: ='DISAGG Inc'!F23 -> 70720 | G26: 70720
B27: - | C27: Insurance and Self Insurance | D27: ='DISAGG Inc'!F24 -> 6718 | E27: 2017-01 | F27: 1330.898805 | G27: 8048.898805
B28: - | C28: Debt Management Costs | D28: ='DISAGG Inc'!F25 -> 583 | G28: 583
B29: - | C29: Grid Support | D29: ='DISAGG Inc'!F26 -> 1770 | G29: 1770
B30: - | C30: Other Costs | D30: ='DISAGG Inc'!F27 -> 0 | G30: 0
B31: Depreciation | D31: ='DISAGG Inc'!F28 -> 274595 | G31: 274595
B32: Net Loss/(Gain) on Disposal of Property, Plant & Equipment | D32: ='DISAGG Inc'!F29 -> 7097 | G32: 7097
B33: Total Operating Costs | D33: =SUM(D24:D32) -> 498592 | F33: =SUM(F24:F32) -> 1330.898805 | G33: =SUM(G24:G32) -> 499922.8988
B35: Earnings before Interest and Tax (EBIT) | D35: =D20-D33 -> 670638 | F35: =F20-F33 -> -1384.142885 | G35: =G20-G33 -> 669253.8571
B37: Taxation
A40: Note: The above numbers have been derived from Powerlink Queensland's financial reporting systems.
A42: Note:
A43: In addition it is mandatory to produce for each cost or revenue item that has been allocated to the Prescribed Services Segment a supporting workpaper that includes the following:
A44: a) the amounts that have been directly attributed to the Prescribed Services Segment
A45: b) the amounts that have been allocated to each Prescribed Services Segment
A46: c) a description of the allocation basis
A47: d) the numeric quantity of each allocator.

Sheet DISAGG Inc
A1: Powerlink
A2: DISAGGREGATION STATEMENT - INCOME
A7: for the period ended: | C7: 30 June 2017
A9: Account code or reference to Account Code | C9: Description | D9: Audited financial statements | F9: Prescribed Transmission Services | G9: Negotiated Transmission Services | H9: Non-Regulated Transmission Services | I9: Not Allocated | J9: Workpaper reference
D10: $'000 | F10: $'000 | G10: $'000 | H10: $'000 | I10: $'000
B12: Network Charges | D12: 1346784 | F12: 1169040
B13: Grid Support Under Recovery Accrual | D13: 0 | F13: 0 | I13: 0
B14: External Project Work | D14: 0 | F14: 0 | I14: 0
B15: Other Revenue | I15: 0
C16: Customer Works | D16: 8201 | F16: 0 | I16: 0
C17: Other | D17: 10976 | F17: 190 | I17: 0
B18: Total Revenue | D18: 1365961 | F18: 1169230 | I18: 0
B20: Opex Costs
B21: - | C21: Network Operations | D21: 15676 | F21: 14269 | I21: 0
B22: - | C22: Network Maintenance | D22: 128703 | F22: 122840 | I22: 0
B23: - | C23: Corporate / Business Support | D23: 81699 | F23: 70720 | I23: 0
B24: - | C24: Insurance and Self Insurance | D24: 6718 | F24: 6718 | I24: 0
B25: - | C25: Debt Management Costs | D25: 583 | F25: 583 | I25: 0
B26: - | C26: Grid Support | D26: 1770 | F26: 1770 | I26: 0
B27: - | C27: Other Costs | D27: 6521 | F27: 0 | I27: 0
B28: Depreciation | D28: 307060 | F28: 274595 | I28: 0
B29: Net Loss/(Gain) on Disposal of Property, Plant & Equipment | D29: 5385 | F29: 7097 | I29: 0
B30: Total Operating Costs | D30: 554115 | F30: 498592 | I30: 0
B32: Earnings before Interest and Tax (EBIT) | D32: 811846 | F32: 670638 | I32: 0
B34: Interest and Dividend Income | D34: 4445 | I34: 4445
B35: Finance Charges | D35: -315162 | I35: -315162
B36: Share of Net Profit/(Loss) of Associates
B37: Profit(loss) before Income Tax Expense | D37: 501129
B39: Australian income tax expense | D39: 160198 | I39: 160198
B40: Deferred income tax | D40: -10235 | I40: -10235
B41: Other income tax | I41: 0
B45: Profit(loss) after income tax expense | D45: 351166
B47: Dividends Provided for / Paid | D47: 361166 | I47: 361166
B48: Retained Earnings Adjustments | D48: 5491 | I48: 5491
B49: Retained Profit(Loss) | D49: -4509
A52: Note: The above numbers have been derived from Powerlink Queensland's financial reporting systems.
A53: Note:
A54: In addition it is mandatory to produce for each cost or revenue item that has been allocated to the Prescribed Services Segment a supporting workpaper that includes the following:
A55: a) the amounts that have been directly attributed to the Prescribed Services Segment
A56: b) the amounts that have been allocated to the Prescribed Services Segment
A57: c) a description of the allocation basis
A58: d) the numeric quantity of each allocator.

Sheet DISAGG Opex
A1: Powerlink
A2: OPERATIONS AND MAINTENANCE EXPENDITURE
A7: for the period ended: | D7: ='RFS Inc'!C7 -> 30 June 2017
A9: Account code or reference to account code | D9: Account Heading | G9: Ticks to indicate which rows are intersegmental costs | I9: Prescribed Transmission Services | J9: Negotiated Transmission Services | K9: Non-Regulated Transmission Services | L9: Not Allocated | M9: Total
I10: $'000 | J10: $'000 | K10: $'000 | L10: $'000 | M10: $'000
D12: Directly Attributed Costs
D13: Network Operations | I13: 14269 | M13: 15676
D14: Network Maintenance | I14: 122840 | M14: 128703
D15: Corporate / Business Support | I15: 70720 | M15: 71840
D16: Insurance and Self Insurance | I16: 8048.898805 | M16: 8048.898805
D17: Debt Management Costs | I17: 583 | M17: 583
D18: Grid Support | I18: 1770 | M18: 1770
D19: Other Costs | I19: 0 | M19: 6521
D20: Depreciation | I20: 274595 | M20: 307060
D21: Net Loss/(Gain) on Disposal of Property, Plant & Equipment | I21: 7097 | M21: 5385
G22: Subtotal of Directly Attributed costs | I22: 499922.8988 | L22: 0 | M22: 545586.8988
D26: Allocated Costs | E26: Basis of allocation | G26: Work paper Ref.
D27: Network Operations | E27: Causal | I27: 0 | L27: 0 | M27: 0
D28: Network Maintenance | E28: Causal | I28: 0 | L28: 0 | M28: 0
D29: Corporate / Business Support | E29: Causal | G29: DISAGG Aloc1 | I29: 0 | L29: 0 | M29: 9859
G33: Subtotal of Allocated costs | I33: 0 | L33: 0 | M33: 9859
G36: Total Opex Costs per DISAGG Fperf 1 | I36: 499922.8988 | L36: 0
L40: Total | M40: 555446
A43: Explanation of opex costs required by the Commission (for example, bushfire costs, insurance etc)
C48: 1 Including Regulatory Adjustments as per RFS Inc
C49: * | D49: Delete as appropriate
C50: ** | D50: For each Account Heading item subject to Causal allocation, ensure that it is included on a workpaper Aloc 1
D51: For each Account Heading item subject to Non-Causal allocation, ensure that it is included on a workpaper Aloc 2
C52: Note: Where Intersegmental costs arise, the total costs of all Business Segments will be greater than the costs in the Base Accounts. This is why the reconciliation to the Base Accounts is required on this schedule.

Sheet DISAGG Aloc1
A1: Powerlink
A2: CAUSAL ALLOCATION
A7: for the period ended: | C7: ='RFS Inc'!C7 -> 30 June 2017
A9: A copy of this workpaper is to be produced for each Causal basis that has been used to allocate costs between Business Segments.
B11: 1. Causal basis of allocation | C11: GROSS BOOK VALUE
B13: 2. Complete the table set out below to indicate:
B14: - the Account Headings and the amounts subject to this Causal basis; and
B15: - the description and quanta of allocator that has been used
A17: Account code or reference to account code | B17: Account Heading | D17: Prescribed Transmission Services | E17: Negotiated Transmission Services | F17: Non-Regulated Transmission Services | G17: Not Allocated | H17: Total
D18: $'000 | E18: $'000 | F18: $'000 | G18: $'000 | H18: $'000
B22: Numeric quantity of allocator (eg no of man-hours) | H22: 1157980
B23: Network Operations | H23: 0
B24: Network Maintenance | H24: 0
B25: Corporate / Business Support | H25: 9859
D26: =SUM(D23:D25) -> 0 | G26: =SUM(G23:G25) -> 0 | H26: 9859
B30: 3. Provide a detailed description and explanation of the basis of allocation:
B32: Powerlink does not separately account for the above "Negotiated" and "Non-Regulated" Corporate / Business Support operating costs.
B33: These costs have been allocated on the basis of Opening Gross Book Value.

Sheet DISAGG Aloc2 (hidden)
A2: NON-CAUSAL ALLOCATION
A7: for the period ended: [type here]
A9: A copy of this workpaper is to be produced for each Non-causal basis that has been used to allocate costs between Business Segments.
B11: 1. Non-causal basis of allocation ………………………………………
B13: 2. Complete the table set out below to indicate the Account Headings and the amounts subject to this non-causal basis.
A15: Account code or reference to account code | B15: Account Heading | D15: Prescribed Transmission Services | E15: Negotiated Transmission Services | F15: Non-Regulated Transmission Services | G15: Not Allocated | H15: Total
D16: $'000 | E16: $'000 | F16: $'000 | G16: $'000 | H16: $'000
B18: (List all Account Headings that have been allocated on this basis)
B26: 3. Provide a detailed description and explanation of the basis of allocation:
B36: 4. Explain why no causal basis could be established:
B46: 5. Explain the reasons for choosing this non-causal basis and why it was preferred over others:
B56: 6. Date on which the Commission/AER granted approval:

Sheet PTS Adj
A1: Powerlink
A2: REGULATORY ADJUSTMENT JOURNALS - PRESCRIBED TRANSMISSION SERVICES
A7: for the period ended: | C7: ='RFS Inc'!C7 -> 30 June 2017
A9: Journal | B9: Account Debited | D9: Amount | F9: Supporting
A10: number | C10: Account Credited | D10: Debit | E10: Credit | F10: Statement
D11: $'000 | E11: $'000 | F11: No.
A14: 2017-01 | B14: Insurance and Self Insurance | D14: 1330.898805
B15: Other Revenue | D15: 53.24408
C16: Self Insurance Provision | E16: 1384.142885
C18: Provision for self insurance has been provided in the Powerlink Queensland Transmission Network Revenue Cap 2012-13 to 2016-17. This provision has only been made in the regulatory accounts due to AASB 137 - Provisions, Contingent Liabilities and Contingent Assets not allowing any provision for unidentifiable or unmeasurable costs.
C19: Revenue disclosed in the Financial Statements includes insurance proceeds. For regulatory accounts, this is presented as an offset against self insurance costs.
A47: Note:
A48: This schedule must contain for each Regulatory Adjustment made on
A49: the Income Statement, the following:
A50: a) a journal entry showing accounts debited and credited
A51: b) an explanation of why the adjustment has been made.

Sheet PTS PriceRedn
A1: Powerlink
A2: PRICE REDUCTION/RECOVERY - PRESCRIBED TRANSMISSION SERVICES
A7: for the period ended: | B7: ='RFS Inc'!C7 -> 30 June 2017
B9: $'000 Customer TUOS | C9: $'000 Common service
B10: general charges | C10: charges
A11: Reduction in prices payable
A17: Total Reduction
A19: Recovery of above reduction in prices
A20: from other transmission customers 1
A24: Total Recovery
A27: Note:
A28: Each instance of a price reduction/recovery should be detailed.
A29: 1 The amount of any reduction in a transmission customer's Customer TUOS general charges
A30: and/or common service charges recovered from other transmission customers under clause 6A.26.1
A31: of the Rules.
A33: COMMENTS

Sheet PTS PDisc
A1: Powerlink
A2: PRUDENT DISCOUNTS - PRESCRIBED TRANSMISSION SERVICES
A7: for the period ended: | D7: ='RFS Inc'!C7 -> 30 June 2017
B12: Number of discounts recovered in previous year
A13: For each discount recovered:
B14: Date of AER approval, if given
B15: Expiry date
B16: Party receiving the discount
B17: Beneficiary of discount
B18: Amount of discount offered in previous year
B19: Amount recovered from the other custumers in previous year
B20: Load subject to discount (max, min, average)
A21: For each discount approved by the AER:
B22: Compliance with conditions - for each condition imposed provide information demonstrating that the condition has been met.

Sheet DISAGG ProvSum
B1: Powerlink
A2: SUMMARY OF PROVISIONS
A7: for the period ended: | D7: ='RFS Inc'!C7 -> 30 June 2017
D9: Prescribed Transmission Services | E9: Negotiated Transmission Services | F9: Non-Regulated Transmission Services | G9: Not Allocated | H9: Total
D10: $'000 | E10: $'000 | F10: $'000 | G10: $'000 | H10: $'000
B12: Amount set aside to provisions | G12: 367230 | H12: =SUM(D12:G12) -> 367230
B14: Expenditure incurred debited to provisions | G14: -385089 | H14: =SUM(D14:G14) -> -385089
B16: Amounts written back from provisions | G16: -50 | H16: =SUM(D16:G16) -> -50
B18: Net movement in provisions | D18: =SUM(D12:D17) -> 0 | E18: 0 | F18: 0 | G18: =SUM(G12:G17) -> -17909 | H18: =SUM(H12:H17) -> -17909
B20: Balance at start of period | G20: 260885 | H20: =SUM(D20:G20) -> 260885
B22: Balance at end of period | G22: =SUM(G18:G21) -> 242976 | H22: =SUM(H18:H21) -> 242976
A25: Comprising:
B27: Current provisions | G27: 217597 | H27: =SUM(D27:G27) -> 217597
B28: Non-current provision | G28: 25379 | H28: 25379
C30: Total per balance sheet | G30: =SUM(G27:G29) -> 242976 | H30: =SUM(H27:H29) -> 242976
A42: Note:
A43: In addition it is mandatory to produce for each item that has been allocated to the Prescribed Services
A44: Segment a supporting workpaper that includes the following:
A45: a) the amounts that have been directly attributed to the Prescribed Services Segment
A46: b) the amounts that have been allocated to the Prescribed Services Segment
A47: c) a description of the allocation basis
A48: d) the numeric quantity of each allocator.
A50: The basis of attribution of provisions to the Prescribed Services Segment, should follow the attribution of the
A51: expenses to which they relate. Taxation, interest and dividend provisions should be attributed to the Not Allocated Segment.

Sheet INF RelPartTrans
A1: Powerlink
A2: RELATED PARTY TRANSACTIONS
A7: for the period ended: | B7: ='RFS Inc'!C7 -> 30 June 2017
A9: Details of related party | B9: Description of transaction | C9: Prescribed | D9: Procurement process | E9: Monetary value of transaction
E10: $'000
B12: Revenue
B13: - Sale of Goods and Services | C13: Part | D13: Competitive Process | E13: 1171609
B14: - Dividend and Interest Income | C14: Part | D14: N/A | E14: 3921
B18: Expense
B19: - Purchases of Goods and Services | C19: Part | D19: Competitive Process | E19: 79744
B20: - Borrowing Costs | C20: Part | D20: N/A | E20: 315013
B24: Capital
A31: Balances with related parties at regulatory accounting date
E32: $'000
B34: Current assets
B35: - Receivables | E35: 71184
B36: - Advances | E36: 264055
B38: Non-current assets
B43: Total assets | E43: =SUM(E35:E42) -> 335239
B45: Current liabilities
B46: - Payables
B49: Non-current liabilities
B50: - Loans | E50: 5265221
B54: Total liabilities | E54: =SUM(E46:E53) -> 5265221
A56: Commitments with related parties at regulatory accounting period
A57: Value of commitments with related parties that are expected to result in related party transactions in future regulatory accounting periods:
C58: Recognised as liabilities | D58: Not recognised as liabilities | E58: Total
C59: $'000 | D59: $'000 | E59: $'000
B61: Payable:
B62: Not later than one year
B63: Later than one year and not later than five years
B64: Later than five years
B66: Total commitments

Sheet INF RevRec
A1: Powerlink
A2: REVENUE RECONCILIATION
A7: for the period ended: | D7: ='RFS Inc'!C7 -> 30 June 2017
B9: Description | D9: Unit type | E9: Unit
B12: CPI (March Tx) | D12: CPI – All Groups Weighted Average of 8 Capital Cities (ABS) | F12: 106.8
B13: CPI (March Tx+1) | D13: As above | F13: 108.2
B14: Change in CPI | D14: Per cent | F14: 0.0131
B15: X-factor | D15: Per cent | F15: -0.03024251425
B16: AR (Tx) | D16: $ | F16: 976132.1773
B17: AR (Tx+1) | D17: $ | F17: 1018826.921
B18: S-factor (Tx) | D18: $+ | F18: 20955.607
B19: Under/over recovery AR (Tx) | D19: $+ | F19: N/A
B20: Revenue Cap Tx+1 | D20: $ | F20: 1039782.528

Sheet Hist Capex by Asset Class
A1: Powerlink
B2: HISTORIC CAPEX by asset class
A9: for the period ended: | C9: ='RFS Inc'!C7 -> 30 June 2017
A12: Actual Gross Capital Expenditure – As Incurred ($m Nominal)
D13: Year | E13: Year-1 | F13: Year 1 | G13: Year 2 | H13: Year 3 | I13: Year 4 | J13: Year 5
A14: Asset Class
B15: Transmission Lines - Overhead | E15: 257.8894024 | F15: 189.6235469 | G15: 88.87644715 | H15: 1.22776163 | I15: 2.21649244 | J15: 1.25379941
B16: Transmission Lines - Underground | E16: 0.33808069 | F16: 0.49117898 | G16: 0 | H16: 0.00206853 | I16: 0 | J16: -0.01863618
B17: Transmission Lines - Refit | E17: 0 | F17: 0 | G17: 0.80252593 | H17: 9.97196291 | I17: 22.59590914 | J17: 42.77632755
B18: Substations Primary Plant | E18: 219.235834 | F18: 140.0042981 | G18: 107.4569074 | H18: 47.01762589 | I18: 28.19282842 | J18: 51.43821685
B19: Substations Secondary Systems | E19: 86.59063914 | F19: 57.89678067 | G19: 78.51746048 | H19: 67.97552936 | I19: 44.94440494 | J19: 36.2894335
B20: Communications Other Assets | E20: 14.94670844 | F20: 12.68753541 | G20: 13.79409512 | H20: 7.80606054 | I20: 3.13281648 | J20: 2.12135373
B21: Comms - Civil Works | E21: 0 | F21: 0 | G21: 0 | H21: 0 | I21: 0 | J21: 0
B22: Network Switching Centres | E22: 1.90009965 | F22: 6.72085952 | G22: 7.24641542 | H22: 2.36560952 | I22: 0.80512729 | J22: 0.17660684
B23: Land | E23: 5.019143007 | F23: 3.608543694 | G23: 2.89222859 | H23: 2.00498817 | I23: 0.63226305 | J23: 0.10205442
B24: Easements | E24: 10.06929901 | F24: 9.896078857 | G24: 7.9751568 | H24: 4.69821767 | I24: 1.54222391 | J24: 5.9025083
B25: Commercial Buildings | E25: 8.87179197 | F25: 14.36328728 | G25: 0.24464369 | H25: 2.61011424 | I25: 6.62187565 | J25: 1.25108765
B26: Computer Equipment | E26: 16.52257147 | F26: 8.26015672 | G26: 5.47258293 | H26: 9.72211127 | I26: 18.41142342 | J26: 22.94679038
B27: Office Furniture & Miscellaneous | E27: 0 | F27: 0.0087419 | G27: 0 | H27: 0 | I27: 0.0011679 | J27: 0
B28: Office Machines | E28: 0 | F28: 0.0023905 | G28: 0.00571726 | H28: 0 | I28: 0 | J28: 0
B29: Vehicles | E29: 5.40285312 | F29: 2.37629948 | G29: 2.44539216 | H29: 2.71840346 | I29: 1.86259029 | J29: 1.25262098
B30: Moveable Plant | E30: 1.64810045 | F30: 0.84031509 | G30: 0.97605911 | H30: 1.16234003 | I30: 1.56331819 | J30: 1.48131836
B31: Insurance Spares | E31: 0.050743 | F31: -0.016138 | G31: 8.7e-05 | H31: 0 | I31: 0 | J31: 0 | K31: Total Yrs 1-5 | L31: Total
D32: Sub total | E32: =SUM(E15:E31) -> 628.4852664 | F32: =SUM(F15:F31) -> 446.7638751 | G32: 316.705719 | H32: 159.2827932 | I32: 132.5224411 | J32: 166.9734818 | K32: =SUM(F32:J32) -> 1222.24831 | L32: =SUM(E32:J32) -> 1850.733577
A34: Notes: - Exclude half year rate of return. Inputs are assumed to be in middle of year terms because actual capex is reported evenly over a financial year. - The asset classes inputed by each TNSP must be the same as those used in the RFM/PTRM. - Yr -1 is the final year of the previous regulatory control period. - Capex should be adjusted for any movements in capitalised provisions and be net of customer contributions. Where relevant please note the amount of any customer contributions excluded. - TNSPs are to update capex as incurred for previous years of the regulatory control period to reflect any movements that may have occurred (e.g. due to the final commissioning of assets). When this information is updated TNSPs must also note the reason for the movement. - Where capex related to Network Capability Incentive Parameter Action Plan (NCIPAP) projects has been incurred and reported across asset classes, the total amount for each project should be noted.
A38: Actual Asset Disposal – As Incurred ($m Nominal)
D39: Year | E39: Year -1 | F39: Year 1 | G39: Year 2 | H39: Year 3 | I39: Year 4 | J39: Year 5
A40: Asset Class
B41: Transmission Lines - Overhead | E41: 7.65969043 | F41: 0 | G41: 0 | H41: 0 | I41: 0.27153448 | J41: 0
B42: Transmission Lines - Underground | E42: 0 | F42: 0 | G42: 0 | H42: 0 | I42: 0 | J42: 0
B43: Transmission Lines - Refit | E43: 0 | F43: 0 | G43: 0 | H43: 0 | I43: 0 | J43: 0
B44: Substations Primary Plant | E44: 0 | F44: 0 | G44: 0.00545454 | H44: 0 | I44: 0 | J44: 0
B45: Substations Secondary Systems | E45: 0 | F45: 0 | G45: 0 | H45: 0 | I45: 0 | J45: 0
B46: Communications Other Assets | E46: 0 | F46: 0 | G46: 0 | H46: 0.07617728 | I46: 0.02104636 | J46: 0
B47: Comms - Civil Works | E47: 0 | F47: 0 | G47: 0 | H47: 0 | I47: 0 | J47: 0
B48: Network Switching Centres | E48: 0 | F48: 0 | G48: 0 | H48: 0 | I48: 0 | J48: 0
B49: Land | E49: 0.01818182 | F49: 0.68031944 | G49: 0.30708413 | H49: 0.45454545 | I49: 0 | J49: 0.4
B50: Easements | E50: 1.23030594 | F50: 0 | G50: 0 | I50: 0 | J50: 0
B51: Commercial Buildings | E51: 0 | F51: 0 | G51: 0 | H51: 0 | I51: 0 | J51: 0
B52: Computer Equipment | E52: 0 | F52: 0 | G52: 0 | H52: 0 | I52: 0 | J52: 0
B53: Office Furniture & Miscellaneous | E53: 0 | F53: 0 | G53: 0 | H53: 0 | I53: 0 | J53: 0
B54: Office Machines | E54: 0 | F54: 0 | G54: 0 | H54: 0 | I54: 0 | J54: 0
B55: Vehicles | E55: 1.14854572 | F55: 1.09342377 | G55: 0.62577268 | H55: 0.79000826 | I55: 1.98581814 | J55: 0.60088181
B56: Moveable Plant | E56: 0 | F56: 0 | G56: 0 | H56: 0 | I56: 0 | J56: 0
B57: Insurance Spares | E57: 0 | F57: 0 | G57: 0 | H57: 0 | I57: 0 | J57: 0 | K57: Total Yrs 1-5 | L57: Total
D58: Sub total | E58: =SUM(E41:E57) -> 10.05672391 | F58: =SUM(F41:F57) -> 1.77374321 | G58: =SUM(G41:G57) -> 0.93831135 | H58: =SUM(H41:H57) -> 1.32073099 | I58: =SUM(I41:I57) -> 2.27839898 | J58: 1.00088181 | K58: =SUM(F58:J58) -> 7.31206634 | L58: =SUM(E58:J58) -> 17.36879025
A60: Notes: - Exclude half year rate of return. Inputs are assumed to be in middle of year terms because actual disposal is reported evenly over a financial year. - The asset classes inputed by each TNSP must be the same as those used in the RFM/PTRM. - Yr -1 is the final year of the previous regulatory control period.
A66: Actual Gross Capital Expenditure – As Commissioned ($m Nominal)
D67: Year | E67: Year -1 | F67: Year 1 | G67: Year 2 | H67: Year 3 | I67: Year 4 | J67: Year 5
A68: Asset Class
B69: Transmission Lines - Overhead | E69: 195.413393 | F69: 221.906082 | G69: 257.461 | H69: 27.352483 | I69: 11.42381283 | J69: 0.626
B70: Transmission Lines - Underground | E70: 2.879 | F70: 0 | G70: 0 | I70: 0 | J70: 0
B71: Transmission Lines - Refit | E71: 0 | F71: 15.108134 | G71: 14.998 | H71: 5.993707 | I71: 6.25333833 | J71: 15.963
B72: Substations Primary Plant | E72: 151.488 | F72: 135.970029 | G72: 175.081 | H72: 83.698009 | I72: 31.90227614 | J72: 36.234
B73: Substations Secondary Systems | E73: 81.744 | F73: 56.366294 | G73: 81.629 | H73: 71.6691 | I73: 20.30192775 | J73: 63.312
B74: Communications Other Assets | E74: 1.501831 | F74: 4.62669 | G74: 3.659 | H74: 34.109059 | I74: 4.14630847 | J74: 6.038
B75: Comms - Civil Works | E75: 0 | F75: 0.507229 | G75: 0.075 | H75: 1.540619 | I75: 0.07271244 | J75: 0.048
B76: Network Switching Centres | E76: 0.052428 | F76: 0.249493 | G76: 0.171 | H76: 0.39544 | I76: 0 | J76: 0
B77: Land | E77: 14.485339 | F77: 6.133191 | G77: 5.954 | H77: 1.048137 | I77: 0.16673902 | J77: -0.794
B78: Easements | E78: 14.807505 | F78: 12.575129 | G78: 11.967 | H78: 2.54018 | I78: 26.08773814 | J78: 11.298
B79: Commercial Buildings | E79: 3.262406 | F79: 9.665377 | G79: 0.11009842 | H79: 0.12841 | I79: 3.51104331 | J79: 5.671
B80: Computer Equipment | E80: 11.184498 | F80: 16.936607 | G80: 11.84998454 | H80: 4.70759 | I80: 14.06675731 | J80: 14.608
B81: Office Furniture & Miscellaneous | E81: 0.013983 | F81: 0.01359 | G81: 0.01328105 | H81: 0.007318 | I81: 0.05606103 | J81: 0
B82: Office Machines | E82: 1.423858 | F82: 0.139601 | G82: 0.0261757 | H82: 0.739152 | I82: 0.02533497 | J82: 2.956
B83: Vehicles | E83: 6.110487 | F83: 2.376299 | G83: 2.44374234 | H83: 2.415522 | I83: 1.1322747 | J83: 1.401
B84: Moveable Plant | E84: 2.347244 | F84: 0.742231 | G84: 1.40376089 | H84: 0.855368 | I84: 1.25750784 | J84: 1.129
B85: Insurance Spares | E85: 0.050743 | F85: -0.016138 | G85: 1.589 | H85: 0.03300291 | I85: 0 | J85: 0 | K85: Total Yrs 1-5 | L85: Total
D86: Sub total | E86: =SUM(E69:E85) -> 486.764715 | F86: =SUM(F69:F85) -> 483.299838 | G86: =SUM(G69:G85) -> 568.4310429 | H86: =SUM(H69:H85) -> 237.2330969 | I86: =SUM(I69:I85) -> 120.4038323 | J86: 158.49 | K86: =SUM(F86:J86) -> 1567.85781 | L86: =SUM(E86:J86) -> 2054.622525
A88: Notes: - Exclude half year rate of return. Inputs are assumed to be in middle of year terms because actual capex is reported evenly over a financial year. - The asset classes inputed by each TNSP must be the same as those used in the RFM/PTRM. - Yr -1 is the final year of the previous regulatory control period. - Capex should be adjusted for any movements in capitalised provisions and be net of customer contributions. Where relevant please note the amount of any customer contributions excluded. - Where capex related to Network Capability Incentive Parameter Action Plan (NCIPAP) projects has been incurred and reported across asset classes, the total amount for each project should be noted.
A93: Actual Asset Disposal – As De-Commissioned ($m Nominal)
D94: Year | E94: Year -1 | F94: Year 1 | G94: Year 2 | H94: Year 3 | I94: Year 4 | J94: Year 5
A95: Asset Class
B96: Transmission Lines - Overhead | E96: 7.65969043 | F96: 0 | G96: 0 | H96: 0 | I96: 0.27153448 | J96: 0
B97: Transmission Lines - Underground | E97: 0 | F97: 0 | G97: 0 | H97: 0 | I97: 0 | J97: 0
B98: Transmission Lines - Refit | E98: 0 | F98: 0 | G98: 0 | H98: 0 | I98: 0 | J98: 0
B99: Substations Primary Plant | E99: 0 | F99: 0 | G99: 0.00545454 | H99: 0 | I99: 0 | J99: 0
B100: Substations Secondary Systems | E100: 0 | F100: 0 | G100: 0 | H100: 0 | I100: 0 | J100: 0
B101: Communications Other Assets | E101: 0 | F101: 0 | G101: 0 | H101: 0.07617728 | I101: 0.02104636 | J101: 0
B102: Comms - Civil Works | E102: 0 | F102: 0 | G102: 0 | H102: 0 | I102: 0 | J102: 0
B103: Network Switching Centres | E103: 0 | F103: 0 | G103: 0 | H103: 0 | I103: 0 | J103: 0
B104: Land | E104: 0.01818182 | F104: 0.68031944 | G104: 0.30708413 | H104: 0.45454545 | I104: 0 | J104: 0.4
B105: Easements | E105: 1.23030594 | F105: 0 | G105: 0 | I105: 0 | J105: 0
B106: Commercial Buildings | E106: 0 | F106: 0 | G106: 0 | H106: 0 | I106: 0 | J106: 0
B107: Computer Equipment | E107: 0 | F107: 0 | G107: 0 | H107: 0 | I107: 0 | J107: 0
B108: Office Furniture & Miscellaneous | E108: 0 | F108: 0 | G108: 0 | H108: 0 | I108: 0 | J108: 0
B109: Office Machines | E109: 0 | F109: 0 | G109: 0 | H109: 0 | I109: 0 | J109: 0
B110: Vehicles | E110: 1.14854572 | F110: 1.09342377 | G110: 0.62577268 | H110: 0.79000826 | I110: 1.98581814 | J110: 0.60088181
B111: Moveable Plant | E111: 0 | F111: 0 | G111: 0 | H111: 0 | I111: 0 | J111: 0
B112: Insurance Spares | E112: 0 | F112: 0 | G112: 0 | H112: 0 | I112: 0 | J112: 0 | K112: Total Yrs 1-5 | L112: Total
D113: Sub total | E113: =SUM(E96:E112) -> 10.05672391 | F113: =SUM(F96:F112) -> 1.77374321 | G113: =SUM(G96:G112) -> 0.93831135 | H113: =SUM(H96:H112) -> 1.32073099 | I113: =SUM(I96:I112) -> 2.27839898 | J113: 1.00088181 | K113: =SUM(F113:J113) -> 7.31206634 | L113: =SUM(E113:J113) -> 17.36879025
A115: Notes: - Exclude half year rate of return. Inputs are assumed to be in middle of year terms because actual disposal is reported evenly over a financial year. - The asset classes inputed by each TNSP must be the same as those used in the RFM/PTRM. - Yr -1 is the final year of the previous regulatory control period.

Sheet Hist Capex - Non-Network
A1: Powerlink
B2: HISTORIC CAPEX - NON-NETWORK- by project
A11: for the period ended: | C11: ='RFS Inc'!C7 -> 30 June 2017
A14: $M nominal
F15: Yearly expenditure by project (exclusive of FDC)
A17: Project ID | B17: Project Description | C17: Commissioning Date | D17: Category^ | F17: Any Part Year | G17: Year 1 | H17: Year 2 | I17: Year 3 | J17: Year 4 | K17: Year 5 | L17: TOTAL | N17: REASON FOR PROJECT | O17: Reg Test / Business Case (Y/N) | P17: Reg Test / Business Case Cost Estimate | Q17: Reason for Variance from Cost Estimate / Expected Commissioning Date
D18: IT | G18: 1.25384057 | H18: 1.13783708 | I18: 0 | J18: 0 | K18: 0 | L18: =SUM(F18:K18) -> 2.39167765 | N18: Additional requirements | O18: Bus Case
D19: IT | G19: 0 | H19: 0 | I19: 1.39982144 | J19: 0.08947706 | K19: -0.024292 | L19: =SUM(F19:K19) -> 1.4650065 | N19: Age/Condition/Obsolescence | O19: Bus Case
D20: IT | G20: 0 | H20: 0 | I20: 0 | J20: 0.04410095 | K20: 2.40995539 | L20: 2.45405634 | N20: Obsolescence/Strategic | O20: Bus Case
D21: IT | G21: 0 | H21: 0 | I21: 0.1199994 | J21: 0.16859917 | K21: 0.82549635 | L21: 1.11409492 | N21: Operational | O21: Bus Case
D22: IT | G22: 0 | H22: 0 | I22: 0.0251778 | J22: 0.544068 | K22: 0.42329986 | L22: 0.99254566 | N22: Operational | O22: Bus Case
D23: IT | G23: 0 | H23: 0 | I23: 0.08405448 | J23: 0.13880299 | K23: 0 | L23: 0.22285747 | N23: Safety | O23: Bus Case
D24: IT | G24: 0 | H24: 0 | I24: 0.07132178 | J24: 2.09730311 | K24: 0.49104031 | L24: 2.6596652 | N24: Operational | O24: Bus Case
D25: IT | G25: 0 | H25: 0 | I25: 1.56688869 | J25: 2.0406043 | K25: 0.074074 | L25: 3.68156699 | N25: Operational | O25: Bus Case
D26: IT | G26: 0 | H26: 0 | I26: 0.0322495 | J26: 0.71063672 | K26: 3.00822665 | L26: 3.75111287 | N26: Operational | O26: Bus Case
D27: IT | G27: 0.39696979 | H27: 0 | I27: 0 | J27: 0 | K27: 0 | L27: 0.39696979 | N27: Operational | O27: Bus Case
D28: IT | G28: 0 | H28: 0 | I28: 0.24838171 | J28: 0.26267641 | K28: 1.08184291 | L28: 1.59290103 | N28: Obsolescence/Strategic | O28: Bus Case
D29: IT | G29: 1.22008596 | H29: 0 | I29: 0.01954527 | J29: 0 | K29: 0 | L29: 1.23963123 | N29: Additional requirements | O29: Bus Case
D30: IT | G30: 0.28193415 | H30: 0.03486187 | I30: 0 | J30: 0 | K30: 0 | L30: 0.31679602 | N30: Operational | O30: Bus Case
D31: IT | G31: 0.22173216 | H31: 0.0532576 | I31: 0 | J31: 0 | K31: 0 | L31: 0.27498976 | N31: Compliance | O31: Bus Case
D32: IT | G32: 0.013814 | H32: 0.22649041 | I32: 0 | J32: 0 | K32: 0 | L32: 0.24030441 | N32: Operational | O32: Bus Case
D33: IT | G33: 0 | H33: 0 | I33: 0 | J33: 2.66082072 | K33: 2.275717 | L33: 4.93653772 | N33: Operational | O33: Bus Case
D34: IT | G34: 0.23578885 | H34: 0 | I34: 0 | J34: 0 | K34: 0 | L34: 0.23578885 | N34: Obsolescence/Strategic | O34: Bus Case
D35: IT | G35: 0.0584287 | H35: 0 | I35: 0 | J35: 0 | K35: 0 | L35: 0.0584287 | N35: Age/Condition/Obsolescence | O35: Bus Case
D36: IT | G36: 0.07224778 | H36: 0.09399675 | I36: 0.78428427 | J36: 0.05831239 | K36: 0 | L36: 1.00884119 | N36: Age/Condition/Obsolescence | O36: Bus Case
D37: IT | G37: 0.01828151 | H37: 0.0651006 | I37: 0.31236891 | J37: -0.00279422 | K37: 0 | L37: 0.3929568 | N37: Operational | O37: Bus Case
D38: IT | G38: 0 | H38: 0.03050136 | I38: 0.39135698 | J38: 0.03936549 | K38: 0 | L38: 0.46122383 | N38: Operational | O38: Bus Case
D39: IT | G39: 0 | H39: 0 | I39: 0 | J39: 0 | K39: 4.197417 | L39: 4.197417 | N39: Operational | O39: Bus Case
D40: IT | G40: 0.63967775 | H40: 0 | I40: 0 | J40: 0 | K40: 0 | L40: 0.63967775 | N40: Age/Condition/Obsolescence | O40: Bus Case
D41: IT | G41: 1.42513076 | H41: -0.00871192 | I41: 0 | J41: 0 | K41: 0 | L41: 1.41641884 | N41: Age/Condition/Obsolescence | O41: Bus Case
D42: IT | G42: 0 | H42: 0.62471818 | I42: 0.02357504 | J42: 0 | K42: 0 | L42: 0.64829322 | N42: Age/Condition/Obsolescence | O42: Bus Case
D43: IT | G43: 0 | H43: 1.22635894 | I43: 0.17065187 | J43: 0 | K43: 0 | L43: 1.39701081 | N43: Age/Condition/Obsolescence | O43: Bus Case
D44: IT | G44: 0 | H44: 0 | I44: 1.35452191 | J44: 0.25726877 | K44: 0 | L44: 1.61179068 | N44: Age/Condition/Obsolescence | O44: Bus Case
D45: IT | G45: 0.14601334 | H45: 0.194651 | I45: 0.0964265 | J45: 0.00644364 | K45: 0 | L45: 0.44353448 | N45: Age/Condition/Obsolescence | O45: Bus Case
D46: IT | G46: 1.26952865 | H46: 0.02285152 | I46: 0 | J46: 0 | K46: 0 | L46: 1.29238017 | N46: Compliance | O46: Bus Case
D47: IT | G47: 0 | H47: 0.21675236 | I47: 1.10289404 | J47: 0.55931681 | K47: 0 | L47: 1.87896321 | N47: Operational | O47: Bus Case
D48: IT | G48: 0 | H48: 0 | I48: 0.24946241 | J48: 0.05234476 | K48: 0.037432 | L48: 0.33923917 | N48: Security | O48: Bus Case
D49: IT | G49: 0.07945766 | H49: 0.45958065 | I49: 0.007101 | J49: 0 | K49: 0 | L49: 0.54613931 | N49: Age/Condition/Obsolescence | O49: Bus Case
D50: IT | G50: 0.64316449 | H50: 0 | I50: 0 | J50: 0 | K50: 0 | L50: 0.64316449 | N50: Security | O50: Bus Case
D51: IT | G51: 0.21312003 | H51: 0.91184046 | I51: 0.09605259 | J51: 0 | K51: 0 | L51: 1.22101308 | N51: Operational | O51: Bus Case
D52: IT | G52: 0.10367765 | H52: 0.2518637 | I52: 0 | J52: 0 | K52: 0 | L52: 0.35554135 | N52: Operational | O52: Bus Case
D53: IT | G53: 0 | H53: 0 | I53: 0.14994523 | J53: 0.45128048 | K53: 0 | L53: 0.60122571 | N53: Operational | O53: Bus Case
D54: IT | G54: 0 | H54: 0 | I54: 0.40434798 | J54: 0.006 | K54: 0 | L54: 0.41034798 | N54: Operational | O54: Bus Case
D55: IT | G55: 0 | H55: 0 | I55: 0 | J55: 0.88553458 | K55: 0.531129 | L55: 1.41666358 | N55: Age/Condition/Obsolescence | O55: Bus Case
D56: IT | G56: 0 | H56: 0 | I56: 0 | J56: 1.5670583 | K56: 0.272319 | L56: 1.8393773 | N56: Age/Condition/Obsolescence | O56: Bus Case
D57: IT | G57: 0 | H57: 0 | I57: 0 | J57: 0 | K57: 1.108665 | L57: 1.108665 | N57: Operational | O57: Bus Case
D58: IT | G58: 0 | H58: 0 | I58: 0 | J58: 1.08731755 | K58: 0.59625 | L58: 1.68356755 | N58: Operational | O58: Bus Case
D59: IT | G59: 0 | H59: 0 | I59: 0.0011005 | J59: 0.16770219 | K59: 0.7818395 | L59: 0.95064219 | N59: Operational | O59: Bus Case
D60: IT | G60: 0 | H60: 0 | I60: 0 | J60: 0 | K60: 1.02066935 | L60: 1.02066935 | N60: Operational | O60: Bus Case
D61: IT | G61: 0 | H61: 0 | I61: 0 | J61: 0.14725286 | K61: 0.85798537 | L61: 1.00523823 | N61: Operational | O61: Bus Case
D62: IT | G62: 0 | H62: 0 | I62: 0.54677048 | J62: 2.698 | K62: 0.807097 | L62: 4.05186748 | N62: Compliance | O62: Bus Case
D63: IT | G63: 0 | H63: 0 | I63: 0 | J63: 0.285 | K63: 0.994498 | L63: 1.279498 | N63: Operational | O63: Bus Case
D64: IT | G64: 0 | H64: 0 | I64: 0 | J64: 0 | K64: 0.409107 | L64: 0.409107 | N64: Operational | O64: Bus Case
D65: IT | G65: 0 | H65: 0 | I65: 0 | J65: 0 | K65: 0.34919 | L65: 0.34919 | N65: Operational | O65: Bus Case
D66: IT | G66: 0 | H66: 0 | I66: 0 | J66: 0 | K66: 0.418673 | L66: 0.418673 | N66: Operational | O66: Bus Case
D67: IT | G67: -0.39212264 | H67: -0.10130749 | I67: 0.47333325 | J67: 1.38890231 | K67: 0.00708689 | L67: 1.37589232
D68: IT | G68: 0.06600163 | H68: 0 | I68: -0.009 | J68: 0 | K68: 0 | L68: 0.05700163
D69: MV | G69: 1.28329948 | H69: 1.81939216 | I69: 1.92840346 | J69: -0.123 | K69: 0.65162098 | L69: 5.55971608 | N69: Annual Cycle
D70: Buildings | G70: 0.2717082 | H70: 0.25058453 | I70: 2.6956687 | J70: 6.666 | K70: 1.25108765 | L70: 11.13504908
D71: Buildings | G71: 2.8587575 | H71: 0 | I71: 0 | J71: 0 | K71: 0 | L71: 2.8587575 | N71: Additional requirements | O71: Bus Case
D72: Buildings | G72: 11.24395398 | H72: 0 | I72: 0 | J72: 0 | K72: 0 | L72: 11.24395398 | N72: Additional requirements | O72: Board Memo
D73: Land | G73: 0.64738691 | H73: 0.02525904 | I73: 0.54506762 | J73: -0.5333 | K73: -0.35475441 | L73: 0.32965916
D74: Tools | G74: 0.84031509 | H74: 0.97605911 | I74: 1.16234003 | J74: 1.56332 | K74: 1.48131836 | L74: 6.02335259
L75: 0
L76: 0
L77: 0
L78: 0
L79: 0
L80: 0
L81: 0
L82: 0
L83: =SUM(F83:K83) -> 0
L84: 0
L85: 0
L86: 0
L87: 0
L88: 0
L89: 0
L90: 0
L91: 0
L92: 0
L93: 0
L94: 0
L95: 0
L96: 0
L97: 0
L98: 0
L99: 0
L100: 0
L101: 0
L102: 0
L103: 0
L104: 0
L105: 0
L106: 0
F108: Subtotal | G108: =SUM(G18:G106) -> 25.11219395 | H108: =SUM(H18:H106) -> 8.51193791 | I108: 16.05411284 | J108: 25.98441534 | K108: 25.98399116 | L108: 101.6466512
D110: ^refers to Categories (e.g Augmentation, Replacement, etc) as defined in “Historic Capex Instructions” worksheet | J110: *Note that values in these columns are estimates only
